fUST/lending_fUST_20260603
["ID","MTS","AMOUNT","RATE_DAILY","PERIOD"]
[423815809,1780433444000,-500.0,0.00013972,2]
[423815825,1780433444000,-500.0,0.00013972,2]
[423815816,1780433444000,-500.0,0.00013972,2]
[423815826,1780433444000,-500.0,0.00013972,2]
[423815824,1780433444000,-500.0,0.00013972,2]
[423815848,1780433444000,-500.0,0.00013972,2]
[423815847,1780433444000,-500.0,0.00013972,2]
[423815844,1780433444000,-500.0,0.00013972,2]
[423815846,1780433444000,-500.0,0.00013972,2]
[423815843,1780433444000,-500.0,0.00013972,2]
[423815841,1780433444000,-264.77900221,0.00013972,2]
[423815849,1780433444000,-125.54555458,0.00013972,2]
[423815850,1780433444000,-620.51122382,0.00013972,2]
[423815842,1780433444000,-322.93586196,0.00013972,2]
[423815840,1780433444000,-235.22099779,0.00013972,2]
[423815836,1780433444000,-500.0,0.00013972,2]
[423815845,1780433444000,-500.0,0.00013972,2]
[423815829,1780433444000,-920.88,0.00013972,2]
[423815839,1780433444000,-500.0,0.00013972,2]
[423815831,1780433444000,-500.0,0.00013972,2]
[423815832,1780433444000,-500.0,0.00013972,2]
[423815833,1780433444000,-500.0,0.00013972,2]
[423815828,1780433444000,-500.0,0.00013972,2]
[423815838,1780433444000,-500.0,0.00013972,2]
[423815837,1780433444000,-500.0,0.00013972,2]
[423815835,1780433444000,-500.0,0.00013972,2]
[423815834,1780433444000,-500.0,0.00013972,2]
[423815830,1780433444000,-500.0,0.00013972,2]
[423815827,1780433444000,-500.0,0.00013972,2]
[423815879,1780433446000,-500.0,0.00014246,2]
[423815884,1780433446000,-500.0,0.00014246,2]
[423815878,1780433446000,-500.0,0.00014246,2]
[423815874,1780433446000,-209.8944253,0.00013972,2]
[423815873,1780433446000,-500.0,0.00013972,2]
[423815877,1780433446000,-500.0,0.00014246,2]
[423815880,1780433446000,-500.0,0.00014246,2]
[423815883,1780433446000,-605.87,0.00014246,2]
[423815885,1780433446000,-500.0,0.00014246,2]
[423815893,1780433446000,-500.0,0.00014246,2]
[423815894,1780433446000,-550.20752017,0.00014246,2]
[423815887,1780433446000,-500.0,0.00014246,2]
[423815895,1780433446000,-500.0,0.00014246,2]
[423815889,1780433446000,-500.0,0.00014246,2]
[423815890,1780433446000,-384.82,0.00014246,2]
[423815891,1780433446000,-500.0,0.00014246,2]
[423815888,1780433446000,-500.0,0.00014246,2]
[423815876,1780433446000,-500.0,0.00014246,2]
[423815886,1780433446000,-500.0,0.00014246,2]
[423815875,1780433446000,-500.0,0.00014246,2]
[423815865,1780433446000,-346.78128415,0.00013972,2]
[423815870,1780433446000,-628.02,0.00013972,2]
[423815854,1780433446000,-670.22,0.00013972,2]
[423815855,1780433446000,-1532.66866536,0.00013972,2]
[423815856,1780433446000,-631.71455624,0.00013972,2]
[423815858,1780433446000,-500.0,0.00013972,2]
[423815857,1780433446000,-500.0,0.00013972,2]
[423815859,1780433446000,-500.0,0.00013972,2]
[423815861,1780433446000,-500.0,0.00013972,2]
[423815860,1780433446000,-500.0,0.00013972,2]
[423815862,1780433446000,-95.58928676,0.00013972,2]
[423815863,1780433446000,-432.01071324,0.00013972,2]
[423815866,1780433446000,-452.87025603,0.00013972,2]
[423815864,1780433446000,-153.21871585,0.00013972,2]
[423815867,1780433446000,-47.12974397,0.00013972,2]
[423815868,1780433446000,-500.0,0.00013972,2]
[423815869,1780433446000,-500.0,0.00013972,2]
[423815871,1780433446000,-347.44845994,0.00013972,2]
[423815881,1780433446000,-500.0,0.00014246,2]
[423815882,1780433446000,-634.75,0.00014246,2]
[423815892,1780433446000,-500.0,0.00014246,2]
[423815872,1780433446000,-500.0,0.00013972,2]
[423815906,1780433446000,-500.0,0.00014246,2]
[423815920,1780433446000,-500.0,0.0001452,2]
[423815907,1780433446000,-500.0,0.00014246,2]
[423815934,1780433446000,-500.0,0.0001452,2]
[423815923,1780433446000,-500.0,0.0001452,2]
[423815924,1780433446000,-603.80782721,0.0001452,2]
[423815935,1780433446000,-920.88,0.0001452,2]
[423815930,1780433446000,-500.0,0.0001452,2]
[423815926,1780433446000,-500.0,0.0001452,2]
[423815936,1780433446000,-261.86471341,0.0001452,2]
[423815937,1780433446000,-500.0,0.0001452,2]
[423815933,1780433446000,-500.0,0.0001452,2]
[423815927,1780433446000,-500.0,0.0001452,2]
[423815931,1780433446000,-445.86,0.0001452,2]
[423815928,1780433446000,-500.0,0.0001452,2]
[423815932,1780433446000,-305.29,0.0001452,2]
[423815938,1780433446000,-500.0,0.0001452,2]
[423815942,1780433446000,-500.0,0.0001452,2]
[423815941,1780433446000,-500.0,0.0001452,2]
[423815940,1780433446000,-462.66,0.0001452,2]
[423815939,1780433446000,-500.0,0.0001452,2]
[423815929,1780433446000,-500.0,0.0001452,2]
[423815917,1780433446000,-238.9,0.0001452,2]
[423815908,1780433446000,-500.0,0.00014246,2]
[423815914,1780433446000,-500.0,0.00014246,2]
[423815918,1780433446000,-500.0,0.0001452,2]
[423815896,1780433446000,-500.0,0.00014246,2]
[423815900,1780433446000,-500.0,0.00014246,2]
[423815901,1780433446000,-616.97544003,0.00014246,2]
[423815897,1780433446000,-500.0,0.00014246,2]
[423815898,1780433446000,-920.88,0.00014246,2]
[423815904,1780433446000,-649.04608683,0.00014246,2]
[423815905,1780433446000,-500.0,0.00014246,2]
[423815903,1780433446000,-500.0,0.00014246,2]
[423815899,1780433446000,-500.0,0.00014246,2]
[423815911,1780433446000,-527.6,0.00014246,2]
[423815913,1780433446000,-500.0,0.00014246,2]
[423815912,1780433446000,-571.41382395,0.00014246,2]
[423815921,1780433446000,-500.0,0.0001452,2]
[423815915,1780433446000,-500.0,0.00014246,2]
[423815910,1780433446000,-500.0,0.00014246,2]
[423815909,1780433446000,-3580.66,0.00014246,2]
[423815916,1780433446000,-500.0,0.00014246,2]
[423815902,1780433446000,-500.0,0.00014246,2]
[423815919,1780433446000,-500.0,0.0001452,2]
[423815986,1780433447000,-527.6,0.00015068,2]
[423815987,1780433447000,-500.0,0.00015068,2]
[423815982,1780433447000,-500.0,0.00015068,2]
[423815981,1780433447000,-500.0,0.00015068,2]
[423815980,1780433447000,-920.88,0.00015068,2]
[423815978,1780433447000,-500.0,0.00015068,2]
[423815983,1780433447000,-500.0,0.00015068,2]
[423815988,1780433447000,-500.0,0.00015068,2]
[423815976,1780433447000,-474.24,0.00015068,2]
[423815977,1780433447000,-500.0,0.00015068,2]
[423815985,1780433447000,-500.0,0.00015068,2]
[423815979,1780433447000,-500.0,0.00015068,2]
[423815984,1780433447000,-3580.66,0.00015068,2]
[423815998,1780433447000,-500.0,0.00015342,2]
[423815989,1780433447000,-165.220197,0.00015068,2]
[423815999,1780433447000,-3580.66,0.00015342,2]
[423816000,1780433447000,-500.0,0.00015342,2]
[423815991,1780433447000,-500.0,0.00015342,2]
[423815992,1780433447000,-500.0,0.00015342,2]
[423815997,1780433447000,-500.0,0.00015342,2]
[423815993,1780433447000,-391.60318318,0.00015342,2]
[423815996,1780433447000,-500.0,0.00015342,2]
[423815968,1780433447000,-500.0,0.00014794,2]
[423815994,1780433447000,-500.0,0.00015342,2]
[423815995,1780433447000,-920.88,0.00015342,2]
[423816001,1780433447000,-527.6,0.00015342,2]
[423816002,1780433447000,-500.0,0.00015342,2]
[423816004,1780433447000,-346.42741875,0.0001561,2]
[423815990,1780433447000,-882.71556143,0.00015109,2]
[423815971,1780433447000,-500.0,0.00014794,2]
[423815963,1780433447000,-920.88,0.00014794,2]
[423815970,1780433447000,-3580.66,0.00014794,2]
[423815947,1780433447000,-500.0,0.0001452,2]
[423815950,1780433447000,-183.15858,0.00014658,2]
[423815949,1780433447000,-500.0,0.0001452,2]
[423815946,1780433447000,-527.6,0.0001452,2]
[423815943,1780433447000,-500.0,0.0001452,2]
[423815951,1780433447000,-250.0,0.00014705,2]
[423815944,1780433447000,-3580.66,0.0001452,2]
[423815945,1780433447000,-500.0,0.0001452,2]
[423815948,1780433447000,-500.0,0.0001452,2]
[423815953,1780433447000,-500.0,0.00014794,2]
[423815954,1780433447000,-500.0,0.00014794,2]
[423815952,1780433447000,-196.85699901,0.00014784,2]
[423815955,1780433447000,-500.0,0.00014794,2]
[423815966,1780433447000,-349.09,0.00014794,2]
[423815958,1780433447000,-385.74923767,0.00014794,2]
[423815956,1780433447000,-500.0,0.00014794,2]
[423815961,1780433447000,-500.0,0.00014794,2]
[423815957,1780433447000,-500.0,0.00014794,2]
[423815959,1780433447000,-500.0,0.00014794,2]
[423815973,1780433447000,-500.0,0.00014794,2]
[423815962,1780433447000,-500.0,0.00014794,2]
[423815964,1780433447000,-500.0,0.00014794,2]
[423815975,1780433447000,-500.0,0.00015068,2]
[423815969,1780433447000,-552.86,0.00014794,2]
[423815967,1780433447000,-500.0,0.00014794,2]
[423815974,1780433447000,-500.0,0.00014794,2]
[423815965,1780433447000,-486.52,0.00014794,2]
[423815972,1780433447000,-527.6,0.00014794,2]
[423815960,1780433447000,-500.0,0.00014794,2]
[423816005,1780433447000,-437.42,0.00015616,2]
[423816003,1780433447000,-500.0,0.00015342,2]
[423816012,1780433447000,-3580.66,0.00015616,2]
[423816042,1780433447000,-527.6,0.00016712,2]
[423816048,1780433447000,-920.88,0.00016986,2]
[423816041,1780433447000,-3580.66,0.00016712,2]
[423816051,1780433447000,-172.7716943,0.000171,2]
[423816044,1780433447000,-160.0,0.00016747,2]
[423816049,1780433447000,-3580.66,0.00016986,2]
[423816045,1780433447000,-160.0,0.00016747,2]
[423816050,1780433447000,-527.6,0.00016986,2]
[423816052,1780433447000,-920.88,0.0001726,2]
[423816006,1780433447000,-500.0,0.00015616,2]
[423816043,1780433447000,-160.0,0.00016747,2]
[423816047,1780433447000,-240.031058,0.00016973,2]
[423816046,1780433447000,-172.7716943,0.000169,2]
[423816054,1780433447000,-527.6,0.0001726,2]
[423816066,1780433447000,-1836.0,0.00017769,2]
[423816064,1780433447000,-261.8737841,0.00017553,2]
[423816057,1780433447000,-214.57927572,0.00017498,2]
[423816055,1780433447000,-172.7716943,0.000173,2]
[423816061,1780433447000,-163.71907147,0.00017553,2]
[423816058,1780433447000,-920.88,0.00017534,2]
[423816056,1780433447000,-172.7716943,0.000174,2]
[423816059,1780433447000,-3580.66,0.00017534,2]
[423816063,1780433447000,-243.62872389,0.00017553,2]
[423816065,1780433447000,-249.0,0.00017702,2]
[423816060,1780433447000,-527.6,0.00017534,2]
[423816062,1780433447000,-202.64697312,0.00017553,2]
[423816068,1780433447000,-3630.0,0.00017769,2]
[423816067,1780433447000,-1415.0,0.00017769,2]
[423816069,1780433447000,-2206.0,0.00017769,2]
[423816034,1780433447000,-920.88,0.00016438,2]
[423816040,1780433447000,-406.92,0.00016712,2]
[423816053,1780433447000,-3580.66,0.0001726,2]
[423816035,1780433447000,-500.0,0.00016438,2]
[423816011,1780433447000,-217.04,0.00015616,2]
[423816009,1780433447000,-500.0,0.00015616,2]
[423816038,1780433447000,-172.7716943,0.000167,2]
[423816007,1780433447000,-243.10048694,0.00015616,2]
[423816010,1780433447000,-500.0,0.00015616,2]
[423816014,1780433447000,-527.6,0.00015616,2]
[423816026,1780433447000,-228.91984013,0.0001593,2]
[423816024,1780433447000,-527.6,0.0001589,2]
[423816013,1780433447000,-500.0,0.00015616,2]
[423816015,1780433447000,-500.0,0.00015616,2]
[423816023,1780433447000,-380.94671607,0.0001589,2]
[423816016,1780433447000,-430.28654684,0.00015616,2]
[423816019,1780433447000,-920.88,0.0001589,2]
[423816020,1780433447000,-500.0,0.0001589,2]
[423816008,1780433447000,-920.88,0.00015616,2]
[423816017,1780433447000,-216.0,0.00015702,2]
[423816021,1780433447000,-500.0,0.0001589,2]
[423816036,1780433447000,-3580.66,0.00016438,2]
[423816037,1780433447000,-527.6,0.00016438,2]
[423816033,1780433447000,-334.55668463,0.00016166,2]
[423816028,1780433447000,-920.88,0.00016164,2]
[423816039,1780433447000,-920.88,0.00016712,2]
[423816031,1780433447000,-3580.66,0.00016164,2]
[423816025,1780433447000,-311.51,0.0001589,2]
[423816029,1780433447000,-500.0,0.00016164,2]
[423816030,1780433447000,-329.74,0.00016164,2]
[423816027,1780433447000,-3559.93032501,0.00016015,2]
[423816018,1780433447000,-499.6278547,0.0001589,2]
[423816032,1780433447000,-527.6,0.00016164,2]
[423816022,1780433447000,-3580.66,0.0001589,2]
[423816089,1780433448000,-306.659,0.000181,2]
[423816087,1780433448000,-3580.66,0.00018082,2]
[423816093,1780433448000,-3580.66,0.00018356,2]
[423816091,1780433448000,-196.856999,0.00018326,2]
[423816083,1780433448000,-405.29394625,0.00017904,2]
[423816092,1780433448000,-920.88,0.00018356,2]
[423816084,1780433448000,-523.74756819,0.00017904,2]
[423816082,1780433448000,-414.81834356,0.00017904,2]
[423816090,1780433448000,-150.308,0.000181,2]
[423816086,1780433448000,-920.88,0.00018082,2]
[423816088,1780433448000,-527.6,0.00018082,2]
[423816071,1780433448000,-3580.66,0.00017808,2]
[423816081,1780433448000,-190.10762133,0.00017904,2]
[423816076,1780433448000,-380.70218328,0.00017903,2]
[423816073,1780433448000,-720.09317399,0.00017848,2]
[423816070,1780433448000,-920.88,0.00017808,2]
[423816080,1780433448000,-327.43814294,0.00017904,2]
[423816077,1780433448000,-364.6698954,0.00017903,2]
[423816072,1780433448000,-527.6,0.00017808,2]
[423816074,1780433448000,-150.52188165,0.00017848,2]
[423816079,1780433448000,-361.19019742,0.00017904,2]
[423816078,1780433448000,-273.19289277,0.00017903,2]
[423816085,1780433448000,-151.33684873,0.00017904,2]
[423816075,1780433448000,-429.15855145,0.00017848,2]
[423816095,1780433448000,-920.88,0.0001863,2]
[423816107,1780433448000,-300.0,0.00019178,2]
[423816118,1780433448000,-484.79222463,0.000196,2]
[423816116,1780433448000,-300.0,0.00019551,2]
[423816108,1780433448000,-920.88,0.00019178,2]
[423816114,1780433448000,-527.6,0.00019452,2]
[423816117,1780433448000,-300.0,0.00019589,3]
[423816119,1780433448000,-20913.65054006,0.00019627,2]
[423816115,1780433448000,-1983.7,0.00019452,2]
[423816111,1780433448000,-1983.7,0.00019178,2]
[423816110,1780433448000,-527.6,0.00019178,2]
[423816113,1780433448000,-3580.66,0.00019452,2]
[423816106,1780433448000,-703.35992309,0.00018932,2]
[423816112,1780433448000,-920.88,0.00019452,2]
[423816099,1780433448000,-3559.93032501,0.00018829,2]
[423816101,1780433448000,-3580.66,0.00018904,2]
[423816100,1780433448000,-920.88,0.00018904,2]
[423816104,1780433448000,-976.2128301,0.00018932,2]
[423816102,1780433448000,-527.6,0.00018904,2]
[423816103,1780433448000,-1983.7,0.00018904,2]
[423816098,1780433448000,-1983.7,0.0001863,2]
[423816096,1780433448000,-3580.66,0.0001863,2]
[423816094,1780433448000,-527.6,0.00018356,2]
[423816097,1780433448000,-527.6,0.0001863,2]
[423816105,1780433448000,-5032.4513241,0.00018932,2]
[423816109,1780433448000,-3580.66,0.00019178,2]
[423816120,1780433555000,-813.4592121,0.0001,2]
[423816237,1780434605000,-2575.11157421,8.865e-05,2]
[423816272,1780434631000,-177.94904369,9.045e-05,2]
[423816267,1780434631000,-745.0,8.954e-05,2]
[423816268,1780434631000,-1830.11157421,8.955e-05,2]
[423816266,1780434631000,-2424.88842579,8.865e-05,2]
[423816270,1780434631000,-1338.10799596,8.955e-05,2]
[423816285,1780434632000,-113.85104343,9.999e-05,2]
[423816281,1780434632000,-500.0,9.999e-05,2]
[423816283,1780434632000,-500.0,9.999e-05,2]
[423816279,1780434632000,-500.0,9.999e-05,2]
[423816277,1780434632000,-500.0,9.999e-05,2]
[423816275,1780434632000,-500.0,9.999e-05,2]
[423816273,1780434632000,-500.0,9.999e-05,2]
[423816494,1780434638000,-151.0,0.0001369,2]
[423816495,1780434638000,-151.0,0.0001369,2]
[423816493,1780434638000,-151.0,0.0001369,2]
[423816482,1780434638000,-317.13291866,0.0001,2]
[423816491,1780434638000,-151.0,0.0001369,2]
[423816490,1780434638000,-213.54986934,0.00013598,2]
[423816497,1780434638000,-151.0,0.0001369,2]
[423816492,1780434638000,-151.0,0.0001369,2]
[423816489,1780434638000,-216.0,0.00013275,2]
[423816499,1780434638000,-151.0,0.0001369,2]
[423816498,1780434638000,-151.0,0.0001369,2]
[423816502,1780434638000,-151.0,0.0001369,2]
[423816501,1780434638000,-151.0,0.0001369,2]
[423816504,1780434638000,-151.0,0.0001369,2]
[423816514,1780434638000,-500.0,0.00013698,2]
[423816515,1780434638000,-500.0,0.00013698,2]
[423816516,1780434638000,-500.0,0.00013698,2]
[423816503,1780434638000,-151.0,0.0001369,2]
[423816500,1780434638000,-151.0,0.0001369,2]
[423816480,1780434638000,-31478.47176473,0.0001,2]
[423816468,1780434638000,-500.0,9.999e-05,2]
[423816485,1780434638000,-2046.47928116,0.00011358,2]
[423816466,1780434638000,-500.0,9.999e-05,2]
[423816465,1780434638000,-386.14895657,9.999e-05,2]
[423816467,1780434638000,-500.0,9.999e-05,2]
[423816512,1780434638000,-500.0,0.00013698,2]
[423816470,1780434638000,-500.0,9.999e-05,2]
[423816471,1780434638000,-500.0,9.999e-05,2]
[423816469,1780434638000,-500.0,9.999e-05,2]
[423816473,1780434638000,-500.0,9.999e-05,2]
[423816474,1780434638000,-500.0,9.999e-05,2]
[423816477,1780434638000,-500.0,9.999e-05,2]
[423816472,1780434638000,-500.0,9.999e-05,2]
[423816486,1780434638000,-250.07286682,0.00011714,2]
[423816475,1780434638000,-500.0,9.999e-05,2]
[423816487,1780434638000,-160.15776348,0.00011752,7]
[423816488,1780434638000,-240.23664524,0.00012444,7]
[423816484,1780434638000,-183.0,0.00011275,2]
[423816483,1780434638000,-238.047654,0.0001096,2]
[423816478,1780434638000,-500.0,9.999e-05,2]
[423816479,1780434638000,-452.45063273,9.999e-05,2]
[423816481,1780434638000,-3200.1303598,0.0001,2]
[423816476,1780434638000,-500.0,9.999e-05,2]
[423816505,1780434638000,-151.0,0.0001369,2]
[423816496,1780434638000,-151.0,0.0001369,2]
[423816509,1780434638000,-151.0,0.0001369,2]
[423816536,1780434638000,-500.0,0.00013698,2]
[423816535,1780434638000,-500.46702687,0.00013698,2]
[423816534,1780434638000,-500.0,0.00013698,2]
[423816537,1780434638000,-500.37054111,0.00013698,2]
[423816541,1780434638000,-446.02174244,0.00013698,2]
[423816553,1780434638000,-500.0,0.00013698,2]
[423816551,1780434638000,-500.0,0.00013698,2]
[423816555,1780434638000,-500.0,0.00013698,2]
[423816547,1780434638000,-500.0,0.00013698,2]
[423816539,1780434638000,-500.0,0.00013698,2]
[423816540,1780434638000,-500.34751688,0.00013698,2]
[423816543,1780434638000,-500.0,0.00013698,2]
[423816544,1780434638000,-500.0,0.00013698,2]
[423816546,1780434638000,-500.0,0.00013698,2]
[423816549,1780434638000,-500.0,0.00013698,2]
[423816557,1780434638000,-500.0,0.00013698,2]
[423816564,1780434638000,-500.0,0.00013698,2]
[423816562,1780434638000,-284.13897344,0.00013698,2]
[423816559,1780434638000,-500.0,0.00013698,2]
[423816506,1780434638000,-151.0,0.0001369,2]
[423816545,1780434638000,-500.0,0.00013698,2]
[423816538,1780434638000,-538.18251717,0.00013698,2]
[423816542,1780434638000,-500.0,0.00013698,2]
[423816532,1780434638000,-500.0,0.00013698,2]
[423816507,1780434638000,-151.0,0.0001369,2]
[423816533,1780434638000,-500.0,0.00013698,2]
[423816511,1780434638000,-300.61741613,0.00013697,2]
[423816513,1780434638000,-500.40261173,0.00013698,2]
[423816508,1780434638000,-151.0,0.0001369,2]
[423816518,1780434638000,-500.0,0.00013698,2]
[423816517,1780434638000,-500.0,0.00013698,2]
[423816520,1780434638000,-500.0,0.00013698,2]
[423816521,1780434638000,-500.43159439,0.00013698,2]
[423816522,1780434638000,-500.60679255,0.00013698,2]
[423816510,1780434638000,-151.0,0.0001369,2]
[423816519,1780434638000,-500.0,0.00013698,2]
[423816523,1780434638000,-500.0,0.00013698,2]
[423816527,1780434638000,-500.0,0.00013698,2]
[423816525,1780434638000,-500.0,0.00013698,2]
[423816528,1780434638000,-500.6062577,0.00013698,2]
[423816529,1780434638000,-500.0,0.00013698,2]
[423816526,1780434638000,-500.0,0.00013698,2]
[423816530,1780434638000,-500.0,0.00013698,2]
[423816524,1780434638000,-500.0,0.00013698,2]
[423816531,1780434638000,-500.0,0.00013698,2]
[423816647,1780434639000,-500.0,0.00013698,2]
[423816657,1780434639000,-500.0,0.00013698,2]
[423816655,1780434639000,-500.0,0.00013698,2]
[423816645,1780434639000,-500.0,0.00013698,2]
[423816651,1780434639000,-500.0,0.00013698,2]
[423816639,1780434639000,-500.0,0.00013698,2]
[423816641,1780434639000,-500.58349877,0.00013698,2]
[423816649,1780434639000,-500.0,0.00013698,2]
[423816637,1780434639000,-500.64269631,0.00013698,2]
[423816631,1780434639000,-500.0,0.00013698,2]
[423816653,1780434639000,-500.0,0.00013698,2]
[423816635,1780434639000,-500.0,0.00013698,2]
[423816643,1780434639000,-500.0,0.00013698,2]
[423816659,1780434639000,-500.0,0.00013698,2]
[423816683,1780434639000,-500.0,0.00013698,2]
[423816665,1780434639000,-500.0,0.00013698,2]
[423816661,1780434639000,-334.38033913,0.00013698,2]
[423816667,1780434639000,-500.0,0.00013698,2]
[423816677,1780434639000,-500.0,0.00013698,2]
[423816679,1780434639000,-500.0,0.00013698,2]
[423816685,1780434639000,-500.0,0.00013698,2]
[423816671,1780434639000,-500.0,0.00013698,2]
[423816681,1780434639000,-500.0,0.00013698,2]
[423816669,1780434639000,-500.0,0.00013698,2]
[423816687,1780434639000,-500.0,0.00013698,2]
[423816675,1780434639000,-500.0,0.00013698,2]
[423816673,1780434639000,-500.0,0.00013698,2]
[423816691,1780434639000,-500.0,0.00013698,2]
[423816633,1780434639000,-500.0,0.00013698,2]
[423816663,1780434639000,-500.0,0.00013698,2]
[423816619,1780434639000,-258.72866872,0.00013698,2]
[423816583,1780434639000,-500.0,0.00013698,2]
[423816623,1780434639000,-500.33936349,0.00013698,2]
[423816566,1780434639000,-500.0,0.00013698,2]
[423816572,1780434639000,-500.0,0.00013698,2]
[423816568,1780434639000,-555.07050498,0.00013698,2]
[423816574,1780434639000,-500.0,0.00013698,2]
[423816577,1780434639000,-500.0,0.00013698,2]
[423816579,1780434639000,-500.0,0.00013698,2]
[423816581,1780434639000,-484.56854257,0.00013698,2]
[423816586,1780434639000,-500.99186555,0.00013698,2]
[423816588,1780434639000,-500.0,0.00013698,2]
[423816590,1780434639000,-500.0,0.00013698,2]
[423816594,1780434639000,-500.0,0.00013698,2]
[423816596,1780434639000,-500.0,0.00013698,2]
[423816592,1780434639000,-500.9549049,0.00013698,2]
[423816689,1780434639000,-500.0,0.00013698,2]
[423816598,1780434639000,-500.0,0.00013698,2]
[423816600,1780434639000,-500.0,0.00013698,2]
[423816608,1780434639000,-500.0,0.00013698,2]
[423816606,1780434639000,-485.65810546,0.00013698,2]
[423816602,1780434639000,-500.0,0.00013698,2]
[423816604,1780434639000,-500.66049132,0.00013698,2]
[423816611,1780434639000,-503.32975987,0.00013698,2]
[423816613,1780434639000,-500.0,0.00013698,2]
[423816621,1780434639000,-500.0,0.00013698,2]
[423816625,1780434639000,-500.0,0.00013698,2]
[423816615,1780434639000,-500.0,0.00013698,2]
[423816617,1780434639000,-500.0,0.00013698,2]
[423816628,1780434639000,-500.0,0.00013698,2]
[423816570,1780434639000,-500.3675931,0.00013698,2]
[423816629,1780434639000,-500.0,0.00013698,2]
[423816627,1780434639000,-500.0,0.00013698,2]
[423816693,1780434639000,-500.0,0.00013698,2]
[423816769,1780434639000,-500.0,0.00013698,2]
[423816705,1780434639000,-500.0,0.00013698,2]
[423816767,1780434639000,-500.0,0.00013698,2]
[423816771,1780434639000,-500.0,0.00013698,2]
[423816773,1780434639000,-500.0,0.00013698,2]
[423816775,1780434639000,-500.0,0.00013698,2]
[423816777,1780434639000,-500.0,0.00013698,2]
[423816779,1780434639000,-500.0,0.00013698,2]
[423816781,1780434639000,-500.0,0.00013698,2]
[423816786,1780434639000,-500.0,0.00013698,2]
[423816790,1780434639000,-500.0,0.00013698,2]
[423816794,1780434639000,-500.0,0.00013698,2]
[423816796,1780434639000,-500.0,0.00013698,2]
[423816804,1780434639000,-500.0,0.00013698,2]
[423816798,1780434639000,-500.0,0.00013698,2]
[423816800,1780434639000,-500.0,0.00013698,2]
[423816816,1780434639000,-562.14,0.00013698,2]
[423816818,1780434639000,-500.0,0.00013698,2]
[423816822,1780434639000,-500.0,0.00013698,2]
[423816820,1780434639000,-500.0,0.00013698,2]
[423816812,1780434639000,-2839.19,0.00013698,2]
[423816806,1780434639000,-500.0,0.00013698,2]
[423816809,1780434639000,-500.0,0.00013698,2]
[423816824,1780434639000,-502.00552098,0.00013698,2]
[423816826,1780434639000,-500.0,0.00013698,2]
[423816814,1780434639000,-500.0,0.00013698,2]
[423816832,1780434639000,-500.0,0.00013698,2]
[423816830,1780434639000,-500.0,0.00013698,2]
[423816828,1780434639000,-500.0,0.00013698,2]
[423816834,1780434639000,-500.0,0.00013698,2]
[423816703,1780434639000,-500.0,0.00013698,2]
[423816764,1780434639000,-500.0,0.00013698,2]
[423816754,1780434639000,-500.0,0.00013698,2]
[423816802,1780434639000,-500.0,0.00013698,2]
[423816752,1780434639000,-500.0,0.00013698,2]
[423816708,1780434639000,-500.0,0.00013698,2]
[423816707,1780434639000,-500.0,0.00013698,2]
[423816699,1780434639000,-500.0,0.00013698,2]